Cogmind - Beta 11 @@@ ROGUE MODE // 2022.03.23 @ 02:51:48 Player: woegarden Result: Destroyed by G-34 Mercenary with Small Laser Performance ------------- Evolutions (0) 0 Regions Visited (1) 200 Robots Destroyed (16) 80 Value Destroyed (336) 336 Prototype IDs (2) 40 Alien Tech Used (0) 0 Bonus (0) 0 TOTAL SCORE: 656 Bonus ------- None Cogmind --------- Core Integrity 0/250 Matter 158/300 Energy 43/100 System Corruption 0% Temperature Cool (22) Movement Core (100) Ox1 Location -10/Materials Parts ------- > --- POWER (1) -------- (None) > --- PROPULSION (2) --- (None) > --- UTILITY (2) ------ Small Storage Unit Sensor Array > --- WEAPON (2) ------- (None) > --- INVENTORY (8) ---- Ion Engine Wheel Wheel Wheel Compact Wheel Seismic Detector Peak State ------------ > --- POWER ------------ Ion Engine > --- PROPULSION ------- Aluminum Leg Aluminum Leg > --- UTILITY ---------- Small Storage Unit Improved Terrain Scanner > --- WEAPON ----------- Assault Rifle Assault Rifle > --- INVENTORY -------- Ion Engine Light Treads Light Treads Wheel Compact Wheel EM Pulse Gun [Rating: 9] Favorites ----------- Power Ion Engine Engine Ion Engine Propulsion Wheel Leg Aluminum Leg Wheel Wheel Utility Small Storage Unit Device Improved Terrain Scanner Storage Small Storage Unit Weapon Assault Rifle Energy Gun EM Pulse Gun Ballistic Gun Assault Rifle Launcher Grenade Launcher Special Weapon Mining Laser Build | -11 -10 ------- Run | Scr Mat Slots Evolved . | . . Power . | . . Propulsion . | . . Utility . | . . Weapon . | . . Parts Attached 10 | 3 7 Power . | . . Engine . | . . Core . | . . Reactor . | . . Propulsion 4 | 2 2 Treads . | . . Leg 2 | . 2 Wheel 2 | 2 . Hover . | . . Flight . | . . Utility 2 | 1 1 Device 2 | 1 1 Storage . | . . Processor . | . . Hackware . | . . Protection . | . . Artifact . | . . Weapon 4 | . 4 Energy Gun 1 | . 1 Energy Cannon . | . . Ballistic Gun 1 | . 1 Ballistic Cannon . | . . Launcher 1 | . 1 Special Weapon 1 | . 1 Impact Weapon . | . . Slashing Weapon . | . . Piercing Weapon . | . . Special Melee Weapon . | . . Unidentified Prototypes . | . . Parts Lost 11 | . 11 Power 1 | . 1 Propulsion 4 | . 4 Utility 1 | . 1 Weapon 5 | . 5 Highest Loss Streak 7 | . 7 To Critical Strikes . | . . Average Slot Usage (%) 71 | . 71 Engine 6 | . 6 Leg 5 | . 5 Wheel 15 | . 15 Device 8 | . 8 Storage 14 | . 14 Energy Gun 5 | . 5 Ballistic Gun 11 | . 11 Launcher 4 | . 4 Naked Turns . | . . Heaviest Build 15 | 15 15 Greatest Support 20 | 20 20 Greatest Overweight (x) 4 | 4 2 Average Overweight (x) . | . . Largest Inventory Capacity 8 | 8 8 Average Capacity 8 | 8 8 Most Carried 8 | 8 8 Average Carried 7 | 6 7 Final Capacity 8 | 8 8 Final Carried 8 | 8 6 Class Distribution -------------------- 100% | Mutant Dominant Class ---------------- Mutant | -10/Materials Resources | -11 -10 ----------- Run | Scr Mat Matter Collected 350 | 279 71 Remotely . | . . Salvage Created 337 | 127 210 Parts 31 | 16 15 Haulers Intercepted . | . . Recyclers Shooed . | . . Parts Field Recycled . | . . Retrieved Matter . | . . Parts Self-Destructed . | . . Prevented . | . . Kills | -11 -10 ------- Run | Scr Mat Combat Hostiles Destroyed 10 | . 10 Guns 4 | . 4 Cannons 1 | . 1 AOE 5 | . 5 Classes Destroyed 5 | 3 2 Worker 2 | 1 1 Tunneler 3 | 3 . Recycler 1 | 1 . Swarmer 4 | . 4 Grunt 6 | . 6 Best Kill Streak 6 | 3 6 Combat Bots Only 5 | . 5 Max Kills in Single Turn 4 | 1 4 Gunslinging . | . . Exploded 3 | . 3 Melee . | . . Uniques/NPCs Destroyed . | . . Combat | -11 -10 -------- Run | Scr Mat Damage Taken 1020 | . 1020 Core 260 | . 260 Absorbed by Shields . | . . Core Remaining (%) 100 | 100 . Volleys Fired 50 | 16 34 Largest 2 | 2 2 Hottest 100 | 40 100 Shots Fired 81 | 32 49 Gun 71 | 32 39 Cannon . | . . Launcher 8 | . 8 Special 2 | . 2 Kinetic 63 | 32 31 Thermal 2 | . 2 Explosive 8 | . 8 Electromagnetic 8 | . 8 Robot Hit Streak 7 | 5 7 Robot Miss Streak 3 | 3 3 Penetration Max . | . . Secondary Targets . | . . Shots Hit Robots 48 | 18 30 Core Hits 26 | 6 20 Critical Kills . | . . Critical Parts Destroyed . | . . Critical Strikes . | . . Melee Attacks . | . . Impact . | . . Slashing . | . . Piercing . | . . Sneak Attacks . | . . Combat Hostiles . | . . Follow-up Attacks . | . . Damage Inflicted 962 | 226 736 Guns 531 | 226 305 Cannons . | . . Explosions 407 | . 407 Melee . | . . Ramming . | . . Kinetic 482 | 226 256 Thermal 51 | . 51 Explosive 380 | . 380 Electromagnetic 49 | . 49 Impact . | . . Slashing . | . . Piercing . | . . Highest Corruption . | . . Average Corruption . | . . Corruption Purged . | . . Corruption Blocked . | . . Overload Shots . | . . Overflow Damage 11 | . 11 Projectiles . | . . Explosions 11 | . 11 Melee . | . . Knockbacks . | . . Impact . | . . Kinetic . | . . Secondary . | . . Self-Inflicted Damage 67 | . 67 Shots 3 | . 3 Rammed . | . . Targets Rammed . | . . Kicked . | . . Crushed . | . . Highest Temperature 50 | . 50 Average Temperature 19 | . 19 Received Heat Transfer 375 | . 375 Siege Activations . | . . Robots Corrupted . | . . Combat Hostiles . | . . Parts Fried . | . . Impact Corruptions . | . . Robots Melted . | . . Combat Hostiles . | . . Parts Melted . | . . Heat Transferred 100 | . 100 Parts Sabotaged . | . . Parts Stolen . | . . Parts Stripped . | . . Power Chain Reactions 1 | . 1 Missiles Intercepted . | . . Alert | -11 -10 ------- Run | Scr Mat Peak Influence 397 | 25 397 Initial 16 | . 16 Average 107 | 12 155 Maximum Alert Level 1 | . 1 Low Security (%) 80 | 100 70 Level 1 19 | . 29 Level 2 . | . . Level 3 . | . . Level 4 . | . . Level 5 . | . . High Security . | . . Max Security . | . . Squads Dispatched 4 | . 4 Investigation 3 | . 3 Extermination . | . . Reinforcement 1 | . 1 Assault . | . . Garrison . | . . Intercept . | . . Searches Triggered . | . . Construction Impeded . | . . Haulers Reinforced . | . . Active Scanning Responses . | . . Cargo Convoy Interrupts . | . . Stealth | -11 -10 --------- Run | Scr Mat Distress Signals . | . . Communications Jammed . | . . Distress Signals . | . . Times Spotted 18 | . 18 Peak Tracking Total 7 | . 7 Tactical Retreats . | . . Traps | -11 -10 ------- Run | Scr Mat Traps Triggered . | . . Indirectly . | . . Trap Hack Attempts . | . . Triggered . | . . Disarmed . | . . Reprogrammed . | . . Reused . | . . Traps Extracted . | . . Installed . | . . Triggered . | . . Machines | -11 -10 ---------- Run | Scr Mat Machines Disabled 5 | . 5 Max in Single Turn 1 | . 1 Machines Sabotaged . | . . Garrisons Compromised . | . . Overloaded Fab Kills . | . . Hacking | -11 -10 --------- Run | Scr Mat Machines Accessed 3 | . 3 Terminals 3 | . 3 Fabricators . | . . Repair Stations . | . . Recycling Units . | . . Scanalyzers . | . . Garrison Access . | . . Total Hacks 12 | . 12 Successful 4 | . 4 Failed 8 | . 8 Catastrophic 3 | . 3 Database Lockouts . | . . Manual 7 | . 7 Terminals 12 | . 12 Fabricators . | . . Repair Stations . | . . Recycling Units . | . . Scanalyzers . | . . Garrison Access . | . . Terminal Hacks 4 | . 4 Prototype ID Bank 1 | . 1 Dispatch Records 1 | . 1 Hauler Manifests 1 | . 1 Zone Layout 1 | . 1 Fabricator Hacks . | . . Repair Station Hacks . | . . Recycling Unit Hacks . | . . Scanalyzer . | . . Garrison Access Hacks . | . . Unauthorized Hacks . | . . Terminals . | . . Fabricators . | . . Repair Stations . | . . Recycling Units . | . . Scanalyzers . | . . Garrison Access . | . . Data Cores Recovered . | . . Used . | . . Hacking Detections 3 | . 3 Full Trace Events 3 | . 3 Feedback Events . | . . Feedback Blocked . | . . Robot Schematics Acquired . | . . Robots Built . | . . Authchips . | . . Time . | . . Total Robot Build Rating . | . . Part Schematics Acquired . | . . Parts Built . | . . Authchips . | . . Time . | . . Total Part Build Rating . | . . Parts Repaired . | . . Time . | . . Parts Recycled . | . . Recycled Matter . | . . Retrieved Matter . | . . Retrieved Components . | . . Parts Scanalyzed . | . . Part Schematics Acquired . | . . Parts Damaged . | . . Bothacking | -11 -10 ------------ Run | Scr Mat Used RIF Installer . | . . Robots Hacked . | . . Non-combat . | . . Combat . | . . Robot Hacks Applied . | . . Relay Couplers Released . | . . Fabnet Peak Effective % . | . . Robots Rewired . | . . Allies Hacked . | . . Hacks Repelled . | . . Allies | -11 -10 -------- Run | Scr Mat Total Allies . | . . Largest Group . | . . Highest-Rated Group . | . . Highest-Rated Ally . | . . Total Orders . | . . Ally Attacks . | . . Total Damage . | . . Kills . | . . Allies Corrupted . | . . Allies Melted . | . . Intel | -11 -10 ------- Run | Scr Mat Robot Analysis Total . | . . Derelict Logs Recovered . | . . Drone Launches . | . . Drone Recoveries . | . . Exploration | -11 -10 ------------- Run | Scr Mat Turns Passed 356 | 118 238 Spaces Moved 203 | 55 148 Core 5 | 2 3 Treads . | . . Legs 62 | 30 32 Wheels 136 | 23 113 Hover . | . . Flight . | . . Fastest Speed 80 | 80 80 Average Speed 95 | 108 91 Slowest Speed 250 | 250 150 Overloaded Moves . | . . Propulsion Burnouts . | . . Robots Hopped . | . . Cave-ins Triggered . | . . Exploration Rate (%) 14 | 5 23 Regions Visited 1 Branch Regions . Pre-discovered Areas . | . . Known Exits Taken . | . . Unknown Exits Taken 1 | 1 . Scrap Searched . | . . Spaces Dug . | . . Terrain Destroyed 40 | . 40 Melee . | . . Projectile . | . . AOE 40 | . 40 Terrain Rammed . | . . Walls Destroyed . | . . Machines Disabled . | . . Actions | -11 -10 --------- Run | Scr Mat Total 279 | 81 198 Wait 7 | . 7 Move 202 | 54 148 Hop . | . . Pick Up 5 | 4 1 Fast Attach 7 | 3 4 Attach 2 | . 2 Detach . | . . Swap 1 | . 1 Drop 5 | 4 1 Fire 50 | 16 34 Melee . | . . Ram . | . . Kick . | . . Crush . | . . Escape Stasis . | . . Rewire . | . . Trap . | . . Miscellaneous . | . . Route ------- -11/Scrapyard -10/Materials History --------- Turn | Location | Event 16 | -11/Scrapyard | Discovered new exit (range 3) 119 | -11/Scrapyard | Entered Materials 316 | -10/Materials | Build established: Mutant 317 | -10/Materials | Lost 7 parts (1p2n1u3w) 338 | -10/Materials | Core integrity fell below 50% 351 | -10/Materials | Core integrity fell below 20% 357 | -10/Materials | Destroyed by G-34 Mercenary with Small Laser Last Messages --------------- 00303_ G-34 Mercenary destroyed. 00303_ Hadron Collector disabled. 00304_ R-06 Scavenger collects Wheel. 00305_ G-34 Mercenary destroyed. 00309_ R-06 Scavenger collects Wheel. 00311_ R-06 Scavenger collects Heat Sink. 00313_ Acquired 14 matter. 00319_ Connecting with Terminal... 00319_ ALERT: Suspicious activity at Terminal M005. Dispatching Investigation squad. 00329_ The unstable cave ceiling collapses. 00334_ Aluminum Leg destroyed. 00340_ Acquired Sensor Array. 00341_ S-10 Pest destroyed. 00345_ Grenade Launcher destroyed. 00351_ The unstable cave ceiling collapses. 00351_ S-10 Pest destroyed. 00353_ Aluminum Leg destroyed. 00355_ The unstable cave ceiling collapses. 00356_ Mining Laser destroyed. Map ----- +----------------------------------------------------+ | ?????????????????????????????# # ??? ????# | | ????????????????????????????## #????#?????? | | ?????????????????????????? ?+ #########??? | | ?????????????????????????????# # %% !#??? | | ??????????????????????"?????## # " " #?## | | ?????????????????????????????# # " #??# | | ?????????????????#???????????# / " #??? | | ?????????? ????????? ???? ? ?# # ##?? | | ????????????????????????????## ####+####??? | | ???????????????????????###### ### ##????? | | ???????????????????????# #??#?? | | ??????????????########## #????? | | ??????????????+ ? #??##? | | ??????????????#^^ ^ #### ###+######? | | ??????????????# T """ #??####### #? | | ??????????????# """ ########## """" ## | | ??????????????# ^""" ##[[!![[## "" " # | | ??????????????# ##[[!![[## """ ## | | ?????????????## ## ## ## | | ?????????????# ! [ ## ########## # # | | ?????????????# ga ##?????# # | | ?????????????# = ##?##### """ # | | ?????????????## ######gggsgm ### """ # | | ??????????????# ????# * "" # | | ??????????????# ????# ## * """ # | | ??????????????#?????# @# [ # | | ????????????????????# = ? +* # | | ???????????????????### % #"" # | | ?????????? ???????? ## % ###### #"" # | | ??????????????????? ############# ##"T # | | ??????????????????? #??# """ # ?##"" # | | ??????????????????? #??# "R" #? ##"" # | | ??????????????????? #??# " " # ## # | | ??????????????????? #??# # ######### | | ??????????????????? #??# # #???????? | | ??????????????????? #??# """ [+ #???????? | | ??????????????????? #??# """ # #???????? | | ???????????????????##??# """ # #??#????? | | ???????????????????????# # #???????? | | ???????????????????????########## #???????? | | ??????????????????#?????????????# #???????? | | ???????????????????#?#??????????# #???????? | | ????????????????????????????????# #???????? | | ????????????????????????????????# #???????? | | ????????????????????????????????#####???????? | | ????????????????????????????????????????????? | | ?????????????????????????????????????#??????? | | ????????????????????????????????????????????? | | ????????????????????????????????????????????? | | ?????????????????????????????????#??????????? | +----------------------------------------------------+ Best States ------------- Heat Dissipation 25 Energy Generation 10 Energy Capacity 250 Matter Stores 300 Matter Capacity 300 Sight Range 16 Robot Scan Range 14 Terrain Scan Range 16 Terrain Scan Density 10 Evasion (%) 55 Item Schematics ----------------- None Robot Schematics ------------------ None Fabricated ------------ Nothing Alien Tech Used ----------------- None Achievements -------------- None Challenges ------------ None Game ------ Seed PrecisionSmartbombAutocannon Manual? 0 Play Time 00:08:41 Cumulative 76.3 hours Start 2022.03.23 @ 02:46:44 End 2022.03.23 @ 02:51:48 Sessions 1 Manual Loads 0 Difficulty Rogue Special Mode None Game No. 111 Rogue 65 Adventurer 45 Explorer 1 Win Type - Total 0 Types 0/0/0/0/0/0/0/0/0 Lore% 25 Gallery% 44 Achievement% 32 Wizard Run 0 Options --------- ASCII 0 Keyboard 0 Movement Mouse Keybinds 0 Fullscreen 2 Font 18/X11Bold Map View 76x50 Tactical HUD 1 Map Filters NONE Filters LOW_CONTRAST(13,24,33)|BRIGHTNESS(90)|SATURATION(87) Steam 1 RUN: 8b7820ac-1a47-4f5b-a9bb-83ad985a7acf